bitfinex-derivatives/quotes_SOLF0:USTF0_20250623
["timestamp","ask_amount","ask_price","bid_price","bid_amount"]
[1750718527712,9.74022434,144.48,144.41,6.00380447]
[1750718528013,2.4188,144.47,144.4,6.00380447]
[1750718528221,2.4188,144.47,144.41,6.00380447]
[1750718528409,2.4188,144.47,144.42,6.00380447]
[1750718528611,2.4188,144.47,144.43,6.00380447]
[1750718528812,2.4188,144.47,144.42,6.00380447]
[1750718529006,9.3356,144.47,144.42,6.00380447]
[1750718529309,12.12672434,144.5,144.42,6.00380447]
[1750718529505,6.916,144.49,144.42,6.00380447]
[1750718529712,2.3569,144.52,144.44,6.00380447]
[1750718529913,9.74022434,144.5,144.4,11.88330019]
[1750718530215,9.74022434,144.47,144.35,11.88330019]
[1750718530420,9.74022434,144.47,144.36,14.30480019]
[1750718530718,67.2265,144.49,144.37,9.74022434]
[1750718530920,67.2265,144.49,144.37,21.62352453]
[1750718531115,67.2265,144.49,144.38,14.29910019]
[1750718531116,6.9168,144.47,144.38,14.29910019]
[1750718531421,67.2265,144.49,144.38,2.4158]
[1750718532311,9.74022434,144.47,144.38,2.4158]
[1750718532718,67.2265,144.49,144.38,2.4158]
[1750718533021,9.74022434,144.47,144.38,2.4158]
[1750718533723,6.9189,144.43,144.38,2.4158]
[1750718534723,6.9196,144.41,144.38,2.4158]
[1750718534912,9.74022434,144.47,144.38,2.4158]
[1750718535420,9.74022434,144.47,144.39,6.9202]
[1750718535611,6.9172,144.46,144.38,2.4158]
[1750718535814,6.9172,144.46,144.38,4.616]
[1750718536010,2.3569,144.52,144.42,9.74022434]
[1750718536225,2.3569,144.52,144.43,244.24]
[1750718536418,2.3569,144.52,144.44,6.9177]
[1750718536623,2.3569,144.52,144.43,244.24]
[1750718537026,2.3644,144.53,144.43,246.6305]
[1750718537223,6.9149,144.51,144.43,246.6305]
[1750718537422,2.3644,144.53,144.43,246.6305]
[1750718538224,6.9145,144.52,144.43,246.6305]
[1750718538424,6.9145,144.52,144.48,6.9161]
[1750718538727,2.3644,144.53,144.48,6.9161]
[1750718539726,6.9143,144.52,144.48,6.9161]
[1750718539916,2.3644,144.53,144.45,2.3105]
[1750718540116,2.4176,144.55,144.45,12.05072434]
[1750718540318,6.9136,144.54,144.5,6.9149]
[1750718540516,2.4176,144.55,144.5,6.9149]
[1750718540720,9.3308,144.55,144.5,6.9149]
[1750718540921,9.3308,144.55,144.46,2.4017]
[1750718541124,9.3308,144.55,144.14,16.30318786]
[1750718541125,20.76,144.43,144.14,16.30318786]
[1750718541321,9.74022434,144.28,144.07,9.74022434]
[1750718541620,597.64,144.32,144.23,2.55648722]
[1750718541821,9.74022434,144.3,144.25,2.55648722]
[1750718542021,9.74022434,144.32,144.26,2.55648722]
[1750718542416,6.9263,144.27,144.14,64.84]
[1750718542724,6.9263,144.27,144.25,2.55648722]
[1750718543028,9.74022434,144.29,144.25,2.55648722]
[1750718543222,6.9267,144.26,144.25,2.55648722]
[1750718544221,13.0771158,144.26,144.11,6.9335]
[1750718544426,9.74022434,144.24,144.2,2.55648722]
[1750718544626,7.02320871,144.23,144.18,2.55648722]
[1750718544831,7.02320871,144.23,144.12,64.88]
[1750718544832,9.74022434,144.21,144.17,2.55648722]
[1750718545018,9.74022434,144.21,144.16,2.55648722]
[1750718545224,6.931,144.17,144.16,2.55648722]
[1750718545425,64.88,144.26,144.12,64.88]
[1750718545624,9.74022434,144.23,144.19,2.55648722]
[1750718545827,13.03747365,144.22,144.12,64.88]
[1750718546129,13.03667104,144.21,144.19,2.55648722]
[1750718546429,6.9296,144.2,144.14,2.2488]
[1750718546627,64.9,144.3,144.14,4.457]
[1750718546826,6.9282,144.23,144.22,2.55648722]
[1750718547027,13.92785325,144.23,144.22,2.55648722]
[1750718547329,13.03460452,144.23,144.18,64.9]
[1750718547532,6.99965325,144.22,144.21,2.55648722]
[1750718547823,6.99965325,144.22,144.18,64.9]
[1750718548026,9.74022434,144.27,144.21,2.55648722]
[1750718548228,13.01034517,144.26,144.22,2.55648722]
[1750718548433,13.01034517,144.25,144.22,2.55648722]
[1750718548724,13.00871835,144.24,144.22,2.55648722]
[1750718548928,6.98658773,144.23,144.22,2.55648722]
[1750718549227,13.91468773,144.23,144.22,2.55648722]
[1750718549631,13.91468773,144.23,144.22,64.55648722]
[1750718550824,3.42696552,144.29,144.22,64.55648722]
[1750718551028,6.01295513,144.28,144.27,2.55648722]
[1750718551226,6.01295513,144.28,144.23,63.4]
[1750718551227,6.01295513,144.28,144.26,2.55648722]
[1750718551524,6.00881502,144.27,144.26,2.55648722]
[1750718551729,6.0091694,144.27,144.23,2.254]
[1750718552032,9.74022434,144.32,144.26,2.55648722]
[1750718552224,9.43230606,144.31,144.25,2.55648722]
[1750718552419,15.74848286,144.3,144.25,2.55648722]
[1750718552623,6.00825852,144.29,144.22,62.0]
[1750718552820,6.00825852,144.29,144.24,2.55648722]
[1750718553126,6.00825852,144.29,144.23,2.55648722]
[1750718553320,3.42188365,144.28,144.23,2.55648722]
[1750718553519,6.9277,144.24,144.21,2.3414]
[1750718553829,9.74022434,144.3,144.2,178.54]
[1750718553830,9.74022434,144.27,144.2,178.54]
[1750718554031,6.9289,144.22,144.2,178.54]
[1750718554226,9.74022434,144.24,144.2,178.54]
[1750718554735,6.9289,144.22,144.2,178.54]
[1750718554928,63.42,144.27,144.2,181.09648722]
[1750718555126,9.74022434,144.31,144.24,2.55648722]
[1750718555327,9.74022434,144.31,144.25,2.55648722]
[1750718555528,6.9251,144.3,144.26,2.55648722]
[1750718555831,608.08022434,144.33,144.28,2.55648722]
[1750718556226,9.74022434,144.33,144.28,2.55648722]
[1750718556430,3.38948659,144.32,144.28,2.55648722]
[1750718556626,9.74022434,144.33,144.28,2.55648722]
[1750718556828,3.38949908,144.32,144.23,62.0]
[1750718557028,9.74022434,144.33,144.28,2.55648722]
[1750718557230,9.74022434,144.29,144.23,62.0]
[1750718557432,9.74022434,144.29,144.24,2.55648722]
[1750718557626,9.74022434,144.29,144.26,2.55648722]
[1750718557930,9.74022434,144.31,144.26,2.55648722]
[1750718558131,9.74022434,144.29,144.23,62.0]
[1750718558328,6.00024253,144.28,144.24,2.55648722]
[1750718558532,9.74022434,144.29,144.25,2.55648722]
[1750718558533,12.92684253,144.27,144.25,2.55648722]
[1750718558734,6.00024253,144.26,144.25,2.55648722]
[1750718558934,6.00024253,144.26,144.23,62.0]
[1750718559131,6.00024253,144.25,144.24,2.55648722]
[1750718559329,9.74022434,144.29,144.24,2.55648722]
[1750718559634,5.78167117,144.28,144.26,2.55648722]
[1750718559937,9.74022434,144.31,144.26,2.55648722]
[1750718560126,6.9254,144.29,144.26,2.55648722]
[1750718560436,5.78131587,144.28,144.23,62.0]
[1750718560632,6.9266,144.27,144.24,2.55648722]
[1750718561430,6.9255,144.29,144.25,6.9272]
[1750718561637,9.74022434,144.32,144.25,6.9272]
[1750718561824,5.78458782,144.31,144.28,2.55648722]
[1750718562028,5.78458782,144.3,144.28,2.55648722]
[1750718562229,5.78458782,144.29,144.28,2.55648722]
[1750718562429,5.78458782,144.29,144.24,63.42]
[1750718562629,3.38767961,144.33,144.28,2.55648722]
[1750718562838,5.78548819,144.32,144.31,2.55648722]
[1750718563040,5.78548819,144.32,144.28,2.3348]
[1750718563229,3.38734913,144.37,144.31,2.55648722]
[1750718563531,9.17210206,144.36,144.31,2.55648722]
[1750718563734,5.78475293,144.35,144.29,68.9249]
[1750718563934,5.78475293,144.34,144.31,2.55648722]
[1750718564137,5.78475293,144.33,144.31,2.55648722]
[1750718564338,9.74022434,144.38,144.29,62.0]
[1750718564636,9.17431535,144.37,144.31,2.55648722]
[1750718564934,9.17431535,144.36,144.31,2.55648722]
[1750718565232,9.17431535,144.35,144.29,62.0]
[1750718565436,9.1810188,144.34,144.31,2.55648722]
[1750718565635,6.9242,144.32,144.31,2.55648722]
[1750718565829,5.78793934,144.32,144.27,177.9]
[1750718566029,9.74022434,144.36,144.31,2.55648722]
[1750718566235,6.9231,144.34,144.31,2.55648722]
[1750718566437,9.46060993,144.33,144.31,2.55648722]
[1750718566633,9.74022434,144.36,144.31,2.55648722]
[1750718566634,5.94875328,144.32,144.31,2.55648722]
[1750718567536,5.94875328,144.32,144.29,6.9249]
[1750718567738,6.9234,144.33,144.31,2.55648722]
[1750718567939,5.96626908,144.32,144.31,2.55648722]
[1750718568132,5.96636073,144.32,144.31,2.55648722]
[1750718568630,12.89016073,144.32,144.31,2.55648722]
[1750718569433,5.96636073,144.32,144.31,2.55648722]
[1750718570249,63.42,144.39,144.31,2.55648722]
[1750718570440,6.9215,144.37,144.35,2.55648722]
[1750718570744,5.97196991,144.36,144.29,63.42]
[1750718570943,5.97196991,144.36,144.35,2.55648722]
[1750718570944,6.9219,144.36,144.35,2.55648722]
[1750718571144,6.9219,144.36,144.29,63.42]
[1750718571145,12.89400011,144.36,144.29,63.42]
[1750718571443,6.9219,144.36,144.35,2.55648722]
[1750718571643,12.8987762,144.36,144.35,2.55648722]
[1750718571840,9.49957602,144.36,144.33,62.0]
[1750718572043,12.8993762,144.35,144.33,62.0]
[1750718572243,5.9768762,144.34,144.3,9.74022434]
[1750718572444,5.9768762,144.33,144.31,6.9243]
[1750718572747,5.9768762,144.32,144.31,2.55648722]
[1750718572945,9.50279435,144.32,144.31,2.55648722]
[1750718573639,9.33981804,144.32,144.31,2.55648722]
[1750718574144,16.26361804,144.32,144.31,2.55648722]
[1750718574345,9.33981804,144.32,144.26,4.5261]
[1750718574542,5.81389989,144.31,144.3,2.55648722]
[1750718575642,9.74022434,144.37,144.3,2.55648722]
[1750718575842,6.9231,144.34,144.32,2.55648722]
[1750718576040,63.4,144.39,144.27,71.74022434]
[1750718576041,5.81476059,144.33,144.27,71.74022434]
[1750718576242,5.81772766,144.32,144.29,9.74022434]
[1750718576440,9.74022434,144.39,144.33,2.55648722]
[1750718576643,9.74022434,144.37,144.33,2.55648722]
[1750718576943,6.9233,144.34,144.3,6.9248]
[1750718577249,9.35251571,144.33,144.25,2.3348]
[1750718577439,9.74022434,144.28,144.16,9.74022434]
[1750718577738,72.75251571,144.32,144.25,2.55648722]
[1750718577739,5.81985803,144.27,144.25,2.55648722]
[1750718577935,75.40662434,144.32,144.26,2.55648722]
[1750718578138,9.3597812,144.31,144.27,2.55648722]
[1750718578331,75.40662434,144.32,144.28,2.55648722]
[1750718578332,9.3597812,144.3,144.28,2.55648722]
[1750718578539,5.82446954,144.29,144.26,6.9263]
[1750718578738,598.28,144.34,144.24,9.74022434]
[1750718578739,5.82446954,144.28,144.24,9.74022434]
[1750718579044,73.14022434,144.36,144.29,2.55648722]
[1750718579241,9.36570671,144.35,144.29,2.55648722]
[1750718579443,19.10593105,144.34,144.24,9.74022434]
[1750718579634,9.36570671,144.33,144.28,2.55648722]
[1750718579837,9.74022434,144.31,144.26,2.55648722]
[1750718580044,6.9265,144.27,144.26,2.55648722]
[1750718580239,6.9265,144.27,144.2,614.99852434]
[1750718580240,9.36570671,144.27,144.2,907.4983]
[1750718580445,9.36570671,144.26,144.23,2.55648722]
[1750718580645,9.36570671,144.25,144.23,2.55648722]
[1750718580943,9.36570671,144.24,144.23,2.55648722]
[1750718581347,6.9285,144.23,144.2,668.6783]
[1750718581646,63.42,144.31,144.22,9.74022434]
[1750718581840,6.9253,144.29,144.27,2.55648722]
[1750718582043,3.54327495,144.28,144.27,2.55648722]
[1750718582236,3.54327495,144.28,144.1,21.9268248]
[1750718582451,9.74022434,144.11,143.89,25.9619797]
[1750718582744,861.24604692,144.1,143.74,238.78]
[1750718582950,6.36532357,144.07,143.78,2.4096]
[1750718583148,6.36532357,144.05,143.79,2.2178]
[1750718583448,671.26254763,144.04,143.8,849.22342434]
[1750718583636,10.72254763,144.03,143.8,843.4832]
[1750718583839,9.74022434,143.99,143.8,853.22342434]
[1750718584040,3.55831595,143.98,143.87,9.74022434]
[1750718584235,3.55831595,143.97,143.87,9.74022434]
[1750718584540,67.51831595,143.96,143.8,183.0432]
[1750718584837,6.9456,143.87,143.8,183.0432]
[1750718585037,3.55831595,143.86,143.8,183.0432]
[1750718585245,66.14,144.01,143.85,9.74022434]
[1750718585440,6.9422,143.94,143.86,9.74022434]
[1750718585753,6.9422,143.94,143.81,66.14]
[1750718585754,5.14361659,144.0,143.81,66.14]
[1750718585939,5.55793868,143.99,143.83,9.74022434]
[1750718586143,5.55793868,143.99,143.81,66.14]
[1750718586343,75.88022434,143.99,143.81,66.14]
[1750718586548,9.74022434,143.99,143.86,9.74022434]
[1750718586743,66.14,144.03,143.8,16.10342434]
[1750718586948,604.46755522,144.07,143.87,62.0]
[1750718586949,9.74022434,143.99,143.87,62.0]
[1750718587143,598.92,144.07,143.87,62.0]
[1750718587144,66.14,144.0,143.87,62.0]
[1750718587339,66.14,144.04,143.9,9.74022434]
[1750718587638,66.14,144.04,143.91,2.4214]
[1750718587639,15.28544849,144.03,143.91,2.4214]
[1750718587839,9.74022434,144.0,143.91,1.21275191]
[1750718588048,6.36532357,144.1,143.94,9.74022434]
[1750718588240,9.74022434,144.08,143.95,9.74022434]
[1750718588553,9.74022434,144.1,143.98,9.74022434]
[1750718588744,9.74022434,144.12,144.0,9.74022434]
[1750718589048,9.74022434,144.15,144.03,9.74022434]
[1750718589447,9.74022434,144.15,144.05,9.74022434]
[1750718589648,9.74022434,144.16,144.05,75.90022434]
[1750718589843,9.74022434,144.16,144.05,66.16]
[1750718590247,6.9349,144.09,144.05,66.16]
[1750718590448,9.74022434,144.13,144.05,66.16]
[1750718590645,66.16,144.19,144.04,2.2311]
[1750718590952,9.74022434,144.14,144.04,2.2311]
[1750718591148,9.74022434,144.14,144.05,62.0]
[1750718591348,6.9359,144.07,144.05,62.0]
[1750718591553,9.74022434,144.11,144.01,66.16]
[1750718592152,66.16,144.13,144.01,66.16]
[1750718592548,9.74022434,144.12,144.01,66.16]
[1750718592747,9.74022434,144.09,144.01,66.16]
[1750718592951,9.74022434,144.1,144.01,66.16]
[1750718593551,6.9364,144.06,144.01,66.16]
[1750718593754,66.16,144.13,144.01,66.16]
[1750718593945,15.30223954,144.12,144.01,75.90022434]
[1750718594154,5.5620152,144.11,144.01,77.10813826]
[1750718594352,5.5620152,144.1,144.01,77.10813826]
[1750718594552,9.74022434,144.12,144.02,62.0]
[1750718594753,5.55743176,144.11,144.02,62.0]
[1750718595057,9.74022434,144.12,144.02,62.0]
[1750718595257,5.5572703,144.11,144.02,62.0]
[1750718595450,9.74022434,144.12,144.02,62.0]
[1750718595650,5.55705255,144.11,144.02,62.0]
[1750718595856,6.9342,144.11,144.03,9.74022434]
[1750718596057,75.92022434,144.15,144.03,9.74022434]
[1750718596359,75.92022434,144.15,144.01,67.36791392]
[1750718596360,5.55662625,144.14,144.06,9.74022434]
[1750718596548,66.18,144.19,144.01,67.36791392]
[1750718596549,75.92022434,144.19,144.08,9.74022434]
[1750718596744,5.55356336,144.18,144.09,6.9074]
[1750718596947,5.55356336,144.17,144.09,6.9074]
[1750718597148,9.74022434,144.19,144.09,6.9074]
[1750718597551,66.18,144.23,144.09,6.9074]
[1750718597757,6.93,144.2,144.12,9.74022434]
[1750718598557,9.74022434,144.23,144.12,9.74022434]
[1750718598755,9.74022434,144.23,144.09,16.64762434]
[1750718598956,6.9315,144.16,144.1,62.0]
[1750718599153,9.74022434,144.2,144.1,62.0]
[1750718599352,66.18,144.24,144.1,62.0]
[1750718599554,6.9311,144.17,144.1,62.0]
[1750718599862,9.74022434,144.21,144.1,62.0]
[1750718600161,6.931,144.17,144.1,62.0]
[1750718600458,6.931,144.17,144.1,68.9344]
[1750718600660,9.74022434,144.18,144.08,248.66]
[1750718600859,66.18,144.24,144.09,2.3756]
[1750718601056,9.74022434,144.21,144.11,6.9339]
[1750718601258,6.9301,144.19,144.11,6.9339]
[1750718601462,6.9301,144.19,144.09,12.11582434]
[1750718601653,9.74022434,144.21,144.09,2.3756]
[1750718601859,6.9301,144.19,144.09,12.11582434]
[1750718602162,9.74022434,144.21,144.09,12.11582434]
[1750718602367,66.18,144.24,144.11,9.74022434]
[1750718602368,5.80090219,144.2,144.11,9.74022434]
[1750718602565,66.18,144.24,144.11,9.74022434]
[1750718602862,9.74022434,144.21,144.1,9.74022434]
[1750718603167,9.74022434,144.18,144.09,2.3756]
[1750718603362,9.74022434,144.16,144.09,2.3756]
[1750718603563,6.9325,144.14,144.09,2.3756]
[1750718603764,16.59368276,144.13,144.08,184.7056]
[1750718604064,6.85345842,144.12,144.08,184.7056]
[1750718604260,6.85345842,144.11,144.08,184.7056]
[1750718604467,6.36532357,144.16,144.08,184.7056]
[1750718604666,6.9326,144.14,144.08,184.7056]
[1750718604964,6.85767061,144.13,144.08,184.7056]
[1750718605153,6.85767061,144.12,144.08,184.7056]
[1750718605358,6.85767061,144.11,144.08,184.7056]
[1750718605557,6.85767061,144.1,144.08,2.2256]
[1750718605759,6.85767061,144.09,144.08,2.2256]
[1750718607370,3.21577061,144.09,144.08,2.2256]
[1750718607566,13.29772357,144.15,144.09,6.9345]
[1750718608070,6.36532357,144.15,144.09,6.9348]
[1750718608460,6.9325,144.14,144.08,9.1609]
[1750718608660,6.36532357,144.15,144.08,2.2256]
[1750718609559,6.36532357,144.16,144.09,179.08]
[1750718609763,6.36532357,144.17,144.09,179.08]
[1750718609963,6.36532357,144.15,144.09,179.08]
[1750718610371,13.29752357,144.15,144.09,186.0145]
[1750718610669,6.36532357,144.15,144.1,62.0]
[1750718610869,6.36532357,144.16,144.11,6.9338]
[1750718611073,12.1404792,144.15,144.1,64.2814]
[1750718611268,6.36532357,144.15,144.1,64.2814]
[1750718611770,13.29722357,144.16,144.1,64.2814]
[1750718611970,6.36532357,144.16,144.1,64.2814]
[1750718612171,6.36532357,144.16,144.11,6.9339]
[1750718612372,6.36532357,144.16,144.1,64.2814]
[1750718612572,6.36532357,144.15,144.1,64.2814]
[1750718612871,13.29722357,144.16,144.1,64.2814]
[1750718613071,6.36532357,144.15,144.1,64.2814]
[1750718614171,13.29722357,144.16,144.1,64.2814]
[1750718614476,6.36532357,144.17,144.12,9.74022434]
[1750718614672,6.36532357,144.2,144.14,9.74022434]
[1750718614870,6.36532357,144.2,144.15,239.7]
[1750718615473,13.29492357,144.2,144.15,246.6319]
[1750718615673,12.08306602,144.19,144.15,239.7]
[1750718615875,6.36532357,144.17,144.15,177.32]
[1750718616074,5.71863308,144.18,144.11,62.38]
[1750718616075,5.71863308,144.16,144.11,62.38]
[1750718616377,6.34433015,144.14,144.1,241.6014]
[1750718616771,6.34433015,144.13,144.1,241.6014]
[1750718617168,6.34433015,144.13,144.11,6.9339]
[1750718617469,6.35061764,144.14,144.1,241.6014]
[1750718617673,2.71091764,144.14,144.1,251.34162434]
[1750718617872,8.33245227,144.19,144.1,251.34162434]
[1750718618070,22.23890275,144.21,144.1,251.34162434]
[1750718618071,13.88959854,144.18,144.1,251.34162434]
[1750718618273,8.33245227,144.18,144.1,251.34162434]
[1750718618575,6.9314,144.17,144.12,6.9331]
[1750718618771,6.9314,144.17,144.1,251.34162434]
[1750718618976,8.33245227,144.2,144.1,251.34162434]
[1750718619175,13.89199918,144.19,144.1,251.34162434]
[1750718619374,5.55954691,144.18,144.1,251.34162434]
[1750718619579,6.87146781,144.17,144.1,251.34162434]
[1750718619771,6.87146781,144.16,144.1,251.34162434]
[1750718619972,6.87146781,144.15,144.1,251.34162434]
[1750718620276,5.56412217,144.19,144.14,6.9325]
[1750718620479,6.85221798,144.18,144.15,177.3]
[1750718620778,6.85221798,144.17,144.15,184.2319]
[1750718621074,6.85221798,144.16,144.15,184.2319]
[1750718621470,6.85221798,144.16,144.15,177.3]
[1750718622871,6.85221798,144.16,144.11,177.28]
[1750718623179,8.50769252,144.14,144.11,177.28]
[1750718623377,15.44139252,144.12,144.08,62.38]
[1750718623575,12.43702912,144.11,144.08,239.64]
[1750718623875,6.85221798,144.1,144.08,239.64]
[1750718624079,6.85221798,144.09,144.08,246.575]
[1750718624277,8.50769252,144.14,144.08,239.64]
[1750718624473,8.50769252,144.16,144.12,6.9331]
[1750718624674,12.49867841,144.19,144.1,9.74022434]
[1750718624675,5.59241252,144.15,144.13,177.26]
[1750718624977,6.9312,144.17,144.13,177.26]
[1750718625180,5.59208575,144.16,144.13,177.26]
[1750718625374,5.59208575,144.15,144.13,177.26]
[1750718625578,8.50769252,144.18,144.13,177.26]
[1750718625778,5.59193372,144.17,144.13,177.26]
[1750718625979,5.59193372,144.16,144.14,62.0]
[1750718626178,8.50769252,144.21,144.14,62.0]
[1750718626374,5.59462559,144.2,144.14,64.2507]
[1750718626582,5.59462559,144.19,144.16,6.9311]
[1750718626781,5.59499792,144.18,144.16,177.26]
[1750718626983,5.59516502,144.17,144.16,177.26]
[1750718627285,5.59516502,144.17,144.16,184.1915]
[1750718628084,3.2431444,144.21,144.16,187.00022434]
[1750718628281,8.50769252,144.24,144.16,187.00022434]
[1750718628478,8.50769252,144.25,144.22,6.9286]
[1750718628778,8.50769252,144.26,144.22,177.24]
[1750718629085,8.50769252,144.28,144.23,62.36]
[1750718629478,8.50769252,144.29,144.23,62.36]
[1750718629671,11.60368825,144.28,144.23,62.36]
[1750718629876,3.09599573,144.27,144.23,62.36]
[1750718630091,8.50769252,144.28,144.24,6.9275]
[1750718630783,8.50769252,144.3,144.23,62.36]
[1750718631078,15.43259252,144.3,144.25,6.9268]
[1750718631276,8.50769252,144.31,144.26,177.18]
[1750718631474,8.33266757,144.3,144.26,177.18]
[1750718631672,8.50769252,144.31,144.26,177.18]
[1750718631883,15.25789884,144.3,144.26,177.18]
[1750718632075,6.9249,144.3,144.26,177.18]
[1750718632381,18.24791686,144.31,144.24,62.0]
[1750718632588,18.24791686,144.31,143.82,20.3554238]
[1750718632589,9.74022434,144.27,144.17,177.16]
[1750718632885,6.9285,144.23,144.18,6.9302]
[1750718633186,8.50769252,144.28,144.18,9.74022434]
[1750718633387,72.10022434,144.3,144.18,9.74022434]
[1750718633590,5.40817839,144.29,144.21,9.74022434]
[1750718633780,11.98732434,144.32,144.22,177.12]
[1750718634084,6.9245,144.31,144.27,6.9261]
[1750718634277,6.9245,144.31,144.27,184.0461]
[1750718634682,6.9237,144.33,144.28,6.9256]
[1750718634882,4.602,144.35,144.27,177.12]
[1750718635084,9.85440059,144.34,144.29,6.9252]
[1750718635386,5.1593382,144.37,144.29,62.34]
[1750718635688,9.74022434,144.5,144.33,9.74022434]
[1750718635982,9.74022434,144.45,144.34,243.8858]
[1750718636284,74.31644679,144.49,144.34,243.8858]
[1750718636285,2.93778608,144.44,144.36,9.74022434]
[1750718636488,2.93778608,144.47,144.36,9.74022434]
[1750718636785,2.93778608,144.46,144.37,6.9214]
[1750718636979,2.92745426,144.45,144.36,9.74022434]
[1750718637180,6.9186,144.43,144.37,6.921]
[1750718637380,9.74022434,144.46,144.37,6.921]
[1750718637577,5.16484679,144.48,144.36,9.74022434]
[1750718637777,12.6687505,144.47,144.38,6.9206]
[1750718638090,2.92852616,144.46,144.34,253.62602434]
[1750718638286,12.6687505,144.47,144.34,253.62602434]
[1750718638780,6.9186,144.43,144.38,6.9208]
[1750718638985,9.74022434,144.47,144.36,9.74022434]
[1750718639185,69.1516,144.49,144.39,62.0]
[1750718639390,69.1516,144.49,144.4,177.02]
[1750718639783,69.1516,144.49,144.43,6.9185]
[1750718639784,6.9163,144.48,144.43,6.9185]
[1750718640175,2.91923363,144.51,144.4,177.02]
[1750718640380,62.32,144.53,144.41,2.256]
[1750718640381,12.65945797,144.52,144.41,2.256]
[1750718640684,9.74022434,144.45,144.37,176.94]
[1750718640880,6.9197,144.41,144.37,176.94]
[1750718641183,72.06022434,144.48,144.37,176.94]
[1750718641489,9.74022434,144.4,144.32,179.176]
[1750718641895,9.74022434,144.36,144.27,176.92]
[1750718642188,72.04022434,144.38,144.27,176.92]
[1750718642383,62.3,144.38,144.3,6.9246]
[1750718642586,62.3,144.38,144.27,186.66022434]
[1750718642786,64.6631,144.38,144.27,186.66022434]
[1750718642991,6.9234,144.33,144.29,6.9251]
[1750718643385,9.74022434,144.37,144.3,6.9247]
[1750718643693,4.7059,144.39,144.31,62.0]
[1750718644192,6.9215,144.37,144.31,62.0]
[1750718644491,4.7059,144.39,144.34,6.9228]
[1750718644687,2.3002,144.39,144.33,176.82]
[1750718644987,6.921,144.38,144.33,183.7432]
[1750718645191,62.3,144.42,144.33,176.82]
[1750718645485,6.921,144.38,144.33,181.3684]
[1750718645693,9.74022434,144.43,144.33,181.3684]
[1750718646086,9.74022434,144.43,144.34,6.9228]
[1750718646389,4.457,144.44,144.34,9.74022434]
[1750718646589,6.9201,144.4,144.35,6.9222]
[1750718646894,598.46,144.5,144.37,9.74022434]
[1750718647089,608.20022434,144.5,144.36,62.1]
[1750718647283,9.74022434,144.48,144.36,62.1]
[1750718647484,9.74022434,144.48,144.37,9.74022434]
[1750718647785,9.74022434,144.46,144.36,62.1]
[1750718648187,9.74022434,144.44,144.36,62.1]
[1750718648386,64.398,144.47,144.36,62.1]
[1750718648694,9.74022434,144.46,144.36,62.1]
[1750718648987,64.398,144.47,144.37,9.74022434]
[1750718649388,2.298,144.47,144.39,9.74022434]
[1750718649592,71.84022434,144.51,144.4,176.72]
[1750718649899,9.74022434,144.47,144.4,176.72]
[1750718650284,9.74022434,144.49,144.4,176.72]
[1750718651094,4.6172,144.5,144.35,2.3552]
[1750718651095,9.74022434,144.45,144.35,179.0552]
[1750718651492,9.74022434,144.45,144.36,62.0]
[1750718651701,9.74022434,144.46,144.36,62.0]
[1750718651991,9.74022434,144.44,144.36,62.0]
[1750718652605,17.27195522,144.5,144.36,62.0]
[1750718652890,9.74022434,144.44,144.36,62.0]
[1750718653396,17.27195522,144.5,144.36,62.0]
[1750718653397,9.74022434,144.47,144.36,62.0]
[1750718654583,9.74022434,144.47,144.37,9.74022434]
[1750718654789,9.74022434,144.47,144.36,62.0]
[1750718654790,9.74022434,144.46,144.36,62.0]
[1750718654986,62.08,144.46,144.35,179.0552]
[1750718655194,9.74022434,144.43,144.35,179.0552]
[1750718655702,12.13822434,144.45,144.35,179.0552]
[1750718655998,62.08,144.46,144.37,9.74022434]
[1750718656195,4.6172,144.5,144.39,9.74022434]
[1750718656391,9.74022434,144.49,144.4,62.08]
[1750718656591,9.74022434,144.47,144.37,71.82022434]
[1750718656793,9.74022434,144.47,144.37,62.08]
[1750718657799,9.74022434,144.47,144.36,186.30022434]
[1750718657995,9.74022434,144.47,144.37,62.0]
[1750718658197,9.74022434,144.45,144.37,62.0]
[1750718658398,9.74022434,144.45,144.36,176.56]
[1750718658700,71.82022434,144.47,144.36,176.56]